fUSD/lending_fUSD_20260531
["ID","MTS","AMOUNT","RATE_DAILY","PERIOD"]
[423519109,1780186238000,-2260.23,0.00012742,2]
[423519107,1780186238000,-1418.43,0.00012521,2]
[423519106,1780186238000,-2260.23,0.00012445,2]
[423519208,1780186239000,-660.02,0.00013698,2]
[423519215,1780186239000,-500.0,0.00013698,2]
[423519206,1780186239000,-660.02,0.00013698,2]
[423519221,1780186239000,-1149.57,0.00013698,2]
[423519217,1780186239000,-500.0,0.00013698,2]
[423519201,1780186239000,-660.02,0.00013698,2]
[423519195,1780186239000,-660.02,0.00013698,2]
[423519197,1780186239000,-660.02,0.00013698,2]
[423519194,1780186239000,-660.02,0.00013698,2]
[423519192,1780186239000,-504.10462625,0.00013698,2]
[423519185,1780186239000,-500.0,0.00013698,2]
[423519223,1780186239000,-1149.57,0.00013698,2]
[423519219,1780186239000,-1149.57,0.00013698,2]
[423519209,1780186239000,-500.0,0.00013698,2]
[423519235,1780186239000,-500.0,0.00013698,2]
[423519211,1780186239000,-500.0,0.00013698,2]
[423519227,1780186239000,-500.0,0.00013698,2]
[423519225,1780186239000,-1149.57,0.00013698,2]
[423519249,1780186239000,-500.0,0.00013698,2]
[423519231,1780186239000,-500.0,0.00013698,2]
[423519233,1780186239000,-500.0,0.00013698,2]
[423519239,1780186239000,-500.0,0.00013698,2]
[423519247,1780186239000,-500.0,0.00013698,2]
[423519243,1780186239000,-500.0,0.00013698,2]
[423519229,1780186239000,-500.0,0.00013698,2]
[423519188,1780186239000,-500.0,0.00013698,2]
[423519245,1780186239000,-500.0,0.00013698,2]
[423519241,1780186239000,-500.0,0.00013698,2]
[423519251,1780186239000,-500.0,0.00013698,2]
[423519213,1780186239000,-500.0,0.00013698,2]
[423519186,1780186239000,-500.0,0.00013698,2]
[423519162,1780186239000,-500.0,0.00013698,2]
[423519184,1780186239000,-500.0,0.00013698,2]
[423519237,1780186239000,-500.0,0.00013698,2]
[423519127,1780186239000,-500.0,0.00013698,2]
[423519132,1780186239000,-295.39381884,0.00013698,2]
[423519140,1780186239000,-1213.75,0.00013698,2]
[423519131,1780186239000,-500.0,0.00013698,2]
[423519144,1780186239000,-1213.75,0.00013698,2]
[423519142,1780186239000,-1213.75,0.00013698,2]
[423519129,1780186239000,-338.87344356,0.00013698,2]
[423519148,1780186239000,-267.58062943,0.00013698,2]
[423519134,1780186239000,-500.0,0.00013698,2]
[423519146,1780186239000,-500.0,0.00013698,2]
[423519138,1780186239000,-500.0,0.00013698,2]
[423519136,1780186239000,-500.0,0.00013698,2]
[423519150,1780186239000,-500.0,0.00013698,2]
[423519199,1780186239000,-660.02,0.00013698,2]
[423519152,1780186239000,-500.0,0.00013698,2]
[423519154,1780186239000,-500.0,0.00013698,2]
[423519168,1780186239000,-1658.95,0.00013698,2]
[423519160,1780186239000,-500.0,0.00013698,2]
[423519166,1780186239000,-1658.95,0.00013698,2]
[423519170,1780186239000,-1658.95,0.00013698,2]
[423519172,1780186239000,-1302.17,0.00013698,2]
[423519158,1780186239000,-502.02558638,0.00013698,2]
[423519173,1780186239000,-1302.17,0.00013698,2]
[423519164,1780186239000,-500.0,0.00013698,2]
[423519175,1780186239000,-1302.17,0.00013698,2]
[423519177,1780186239000,-500.0,0.00013698,2]
[423519190,1780186239000,-500.0,0.00013698,2]
[423519179,1780186239000,-500.0,0.00013698,2]
[423519182,1780186239000,-500.0,0.00013698,2]
[423519156,1780186239000,-500.0,0.00013698,2]
[423519255,1780186239000,-500.0,0.00013698,2]
[423519203,1780186239000,-660.02,0.00013698,2]
[423519257,1780186239000,-500.0,0.00013698,2]
[423519317,1780186239000,-151.0,0.00013699,2]
[423519330,1780186239000,-151.0,0.00013699,2]
[423519326,1780186239000,-151.0,0.00013699,2]
[423519312,1780186239000,-151.0,0.00013699,2]
[423519319,1780186239000,-151.0,0.00013699,2]
[423519332,1780186239000,-151.0,0.00013699,2]
[423519355,1780186239000,-151.0,0.00013699,2]
[423519342,1780186239000,-151.0,0.00013699,2]
[423519344,1780186239000,-151.0,0.00013699,2]
[423519334,1780186239000,-151.0,0.00013699,2]
[423519348,1780186239000,-151.0,0.00013699,2]
[423519338,1780186239000,-151.0,0.00013699,2]
[423519340,1780186239000,-151.0,0.00013699,2]
[423519350,1780186239000,-151.0,0.00013699,2]
[423519328,1780186239000,-151.0,0.00013699,2]
[423519353,1780186239000,-151.0,0.00013699,2]
[423519336,1780186239000,-151.0,0.00013699,2]
[423519346,1780186239000,-151.0,0.00013699,2]
[423519357,1780186239000,-151.0,0.00013699,2]
[423519359,1780186239000,-151.0,0.00013699,2]
[423519379,1780186239000,-151.0,0.00013699,2]
[423519360,1780186239000,-151.0,0.00013699,2]
[423519372,1780186239000,-151.0,0.00013699,2]
[423519364,1780186239000,-151.0,0.00013699,2]
[423519377,1780186239000,-151.0,0.00013699,2]
[423519375,1780186239000,-151.0,0.00013699,2]
[423519370,1780186239000,-151.0,0.00013699,2]
[423519362,1780186239000,-151.0,0.00013699,2]
[423519373,1780186239000,-151.0,0.00013699,2]
[423519253,1780186239000,-500.0,0.00013698,2]
[423519351,1780186239000,-151.0,0.00013699,2]
[423519310,1780186239000,-151.0,0.00013699,2]
[423519368,1780186239000,-151.0,0.00013699,2]
[423519321,1780186239000,-151.0,0.00013699,2]
[423519268,1780186239000,-500.0,0.00013698,2]
[423519274,1780186239000,-500.0,0.00013698,2]
[423519280,1780186239000,-500.0,0.00013698,2]
[423519263,1780186239000,-500.0,0.00013698,2]
[423519261,1780186239000,-500.0,0.00013698,2]
[423519276,1780186239000,-500.0,0.00013698,2]
[423519272,1780186239000,-500.0,0.00013698,2]
[423519266,1780186239000,-500.0,0.00013698,2]
[423519320,1780186239000,-151.0,0.00013699,2]
[423519265,1780186239000,-500.0,0.00013698,2]
[423519270,1780186239000,-500.0,0.00013698,2]
[423519282,1780186239000,-500.0,0.00013698,2]
[423519259,1780186239000,-500.0,0.00013698,2]
[423519284,1780186239000,-500.0,0.00013698,2]
[423519290,1780186239000,-500.0,0.00013698,2]
[423519278,1780186239000,-500.0,0.00013698,2]
[423519286,1780186239000,-500.0,0.00013698,2]
[423519314,1780186239000,-151.0,0.00013699,2]
[423519296,1780186239000,-500.0,0.00013698,2]
[423519316,1780186239000,-151.0,0.00013699,2]
[423519324,1780186239000,-151.0,0.00013699,2]
[423519323,1780186239000,-151.0,0.00013699,2]
[423519300,1780186239000,-2500.0,0.00013699,2]
[423519366,1780186239000,-151.0,0.00013699,2]
[423519288,1780186239000,-500.0,0.00013698,2]
[423519306,1780186239000,-151.0,0.00013699,2]
[423519298,1780186239000,-156.0,0.00013698,2]
[423519292,1780186239000,-500.0,0.00013698,2]
[423519294,1780186239000,-500.0,0.00013698,2]
[423519302,1780186239000,-151.0,0.00013699,2]
[423519308,1780186239000,-151.0,0.00013699,2]
[423519304,1780186239000,-151.0,0.00013699,2]
[423519457,1780186240000,-500.0,0.00014999,2]
[423519467,1780186240000,-1658.95,0.00014999,2]
[423519484,1780186240000,-1302.17,0.00014999,2]
[423519482,1780186240000,-1658.95,0.00014999,2]
[423519445,1780186240000,-1213.75,0.00014999,2]
[423519455,1780186240000,-500.0,0.00014999,2]
[423519443,1780186240000,-1213.75,0.00014999,2]
[423519453,1780186240000,-500.0,0.00014999,2]
[423519447,1780186240000,-1213.75,0.00014999,2]
[423519441,1780186240000,-1213.75,0.00014999,2]
[423519459,1780186240000,-500.0,0.00014999,2]
[423519439,1780186240000,-1213.75,0.00014999,2]
[423519465,1780186240000,-520.80002273,0.00014999,2]
[423519469,1780186240000,-1658.95,0.00014999,2]
[423519495,1780186240000,-1302.17,0.00014999,2]
[423519488,1780186240000,-1302.17,0.00014999,2]
[423519473,1780186240000,-1658.95,0.00014999,2]
[423519475,1780186240000,-1658.95,0.00014999,2]
[423519492,1780186240000,-1302.17,0.00014999,2]
[423519490,1780186240000,-1302.17,0.00014999,2]
[423519486,1780186240000,-1302.17,0.00014999,2]
[423519478,1780186240000,-1658.95,0.00014999,2]
[423519479,1780186240000,-1658.95,0.00014999,2]
[423519503,1780186240000,-500.0,0.00014999,2]
[423519506,1780186240000,-500.0,0.00014999,2]
[423519500,1780186240000,-500.0,0.00014999,2]
[423519513,1780186240000,-660.02,0.00014999,2]
[423519509,1780186240000,-500.0,0.00014999,2]
[423519449,1780186240000,-500.0,0.00014999,2]
[423519471,1780186240000,-1658.95,0.00014999,2]
[423519451,1780186240000,-500.0,0.00014999,2]
[423519403,1780186240000,-209.44,0.0001453,2]
[423519463,1780186240000,-500.0,0.00014999,2]
[423519515,1780186240000,-660.02,0.00014999,2]
[423519383,1780186240000,-200.0,0.00013699,2]
[423519385,1780186240000,-166.66,0.00013699,2]
[423519381,1780186240000,-246.483793,0.00013699,2]
[423519409,1780186240000,-500.0,0.00014999,2]
[423519407,1780186240000,-40320.24609075,0.00014849,2]
[423519389,1780186240000,-166.66,0.00013973,2]
[423519399,1780186240000,-13878.23372614,0.00014451,2]
[423519397,1780186240000,-166.66,0.00014384,2]
[423519411,1780186240000,-500.0,0.00014999,2]
[423519395,1780186240000,-166.66,0.00014247,2]
[423519405,1780186240000,-2000.0,0.00014832,2]
[423519387,1780186240000,-166.66,0.00013836,2]
[423519401,1780186240000,-166.66,0.00014479,2]
[423519461,1780186240000,-500.0,0.00014999,2]
[423519393,1780186240000,-166.66,0.0001411,2]
[423519419,1780186240000,-500.0,0.00014999,2]
[423519426,1780186240000,-500.0,0.00014999,2]
[423519415,1780186240000,-500.0,0.00014999,2]
[423519421,1780186240000,-500.0,0.00014999,2]
[423519422,1780186240000,-500.0,0.00014999,2]
[423519429,1780186240000,-500.0,0.00014999,2]
[423519431,1780186240000,-500.0,0.00014999,2]
[423519433,1780186240000,-1213.75,0.00014999,2]
[423519427,1780186240000,-500.0,0.00014999,2]
[423519435,1780186240000,-1213.75,0.00014999,2]
[423519437,1780186240000,-1213.75,0.00014999,2]
[423519423,1780186240000,-500.0,0.00014999,2]
[423519413,1780186240000,-500.0,0.00014999,2]
[423519417,1780186240000,-463.65970565,0.00014999,2]
[423519391,1780186240000,-7878.76222464,0.00014043,2]
[423519497,1780186240000,-500.0,0.00014999,2]
[423519494,1780186240000,-1302.17,0.00014999,2]
[423519499,1780186240000,-500.0,0.00014999,2]
[423519577,1780186240000,-155.08,0.00017474,2]
[423519593,1780186240000,-155.08,0.00017849,2]
[423519573,1780186240000,-155.08,0.0001738,2]
[423519575,1780186240000,-209.44,0.00017436,2]
[423519595,1780186240000,-155.08,0.00017943,2]
[423519591,1780186240000,-2000.0,0.00017799,2]
[423519571,1780186240000,-155.08,0.00017287,2]
[423519589,1780186240000,-155.08,0.00017755,2]
[423519585,1780186240000,-155.08,0.00017661,2]
[423519579,1780186240000,-1418.43,0.0001753,2]
[423519617,1780186240000,-155.08,0.00018317,2]
[423519606,1780186240000,-155.08,0.0001813,2]
[423519612,1780186240000,-173.99832511,0.000182,2]
[423519610,1780186240000,-1702.29356295,0.000182,2]
[423519587,1780186240000,-162.42,0.00017676,2]
[423519602,1780186240000,-173.99832511,0.00018,2]
[423519604,1780186240000,-155.08,0.00018036,2]
[423519598,1780186240000,-561.02998527,0.00018,2]
[423519619,1780186240000,-561.02998527,0.000184,2]
[423519621,1780186240000,-1702.29356295,0.000184,2]
[423519608,1780186240000,-561.02998527,0.000182,2]
[423519615,1780186240000,-155.08,0.00018224,2]
[423519630,1780186240000,-1702.29356295,0.000185,2]
[423519626,1780186240000,-155.08,0.00018411,2]
[423519632,1780186240000,-156.94942962,0.00018501,2]
[423519493,1780186240000,-1302.17,0.00014999,2]
[423519634,1780186240000,-155.08,0.00018505,2]
[423519638,1780186240000,-155.08,0.00018692,2]
[423519624,1780186240000,-1556.0,0.0001841,2]
[423519636,1780186240000,-155.08,0.00018598,2]
[423519599,1780186240000,-1702.29356295,0.00018,2]
[423519583,1780186240000,-7878.76222464,0.00017575,2]
[423519628,1780186240000,-561.02998527,0.000185,2]
[423519547,1780186240000,-500.0,0.00016747,2]
[423519504,1780186240000,-500.0,0.00014999,2]
[423519511,1780186240000,-660.02,0.00014999,2]
[423519517,1780186240000,-660.02,0.00014999,2]
[423519529,1780186240000,-151.0,0.00016275,2]
[423519531,1780186240000,-2000.0,0.00016315,2]
[423519535,1780186240000,-357.19249741,0.00016667,2]
[423519533,1780186240000,-1556.0,0.00016438,2]
[423519526,1780186240000,-209.44,0.00015983,2]
[423519524,1780186240000,-660.02,0.00014999,2]
[423519528,1780186240000,-6058.18,0.00016058,2]
[423519521,1780186240000,-660.02,0.00014999,2]
[423519539,1780186240000,-168.13,0.00016712,2]
[423519541,1780186240000,-500.0,0.00016747,2]
[423519537,1780186240000,-13878.23372614,0.00016677,2]
[423519519,1780186240000,-660.02,0.00014999,2]
[423519549,1780186240000,-500.0,0.00016747,2]
[423519553,1780186240000,-500.0,0.00016747,2]
[423519559,1780186240000,-155.08,0.00016912,2]
[423519566,1780186240000,-40320.24609075,0.00017018,2]
[423519560,1780186240000,-150.0,0.00016979,2]
[423519557,1780186240000,-500.0,0.00016747,2]
[423519564,1780186240000,-155.08,0.00017006,2]
[423519562,1780186240000,-187.71242717,0.00017006,10]
[423519555,1780186240000,-500.0,0.00016747,2]
[423519543,1780186240000,-1149.57,0.00016747,2]
[423519570,1780186240000,-155.08,0.00017193,2]
[423519545,1780186240000,-289.62764343,0.00016747,2]
[423519581,1780186240000,-155.08,0.00017568,2]
[423519568,1780186240000,-155.08,0.00017099,2]
[423519551,1780186240000,-500.0,0.00016747,2]
[423519701,1780186241000,-151.0,0.00019549,2]
[423519709,1780186241000,-158.0,0.0002,2]
[423519717,1780186241000,-514.0,0.0002,2]
[423519724,1780186241000,-316.0,0.0002,2]
[423519711,1780186241000,-451.0,0.0002,2]
[423519715,1780186241000,-154.0,0.0002,2]
[423519719,1780186241000,-247.0,0.0002,2]
[423519713,1780186241000,-158.0,0.0002,2]
[423519705,1780186241000,-660.02,0.00019796,2]
[423519721,1780186241000,-210.0,0.0002,2]
[423519703,1780186241000,-500.0,0.00019796,2]
[423519726,1780186241000,-153.0,0.0002,2]
[423519757,1780186241000,-316.0,0.00021,2]
[423519748,1780186241000,-158.0,0.00021,2]
[423519745,1780186241000,-451.0,0.00021,2]
[423519737,1780186241000,-2236.95670847,0.00020645,2]
[423519739,1780186241000,-1751.0,0.00020699,5]
[423519734,1780186241000,-1214.56144063,0.00020097,2]
[423519750,1780186241000,-154.0,0.00021,2]
[423519728,1780186241000,-942.58099763,0.00020097,2]
[423519741,1780186241000,-329.0,0.00021,2]
[423519744,1780186241000,-158.0,0.00021,2]
[423519735,1780186241000,-1556.0,0.00020381,2]
[423519755,1780186241000,-210.0,0.00021,2]
[423519682,1780186241000,-151.0,0.00019549,2]
[423519707,1780186241000,-329.0,0.0002,2]
[423519692,1780186241000,-151.0,0.00019549,2]
[423519671,1780186241000,-307.6116164,0.00019549,2]
[423519680,1780186241000,-151.0,0.00019549,2]
[423519753,1780186241000,-247.0,0.00021,2]
[423519644,1780186241000,-13878.23372614,0.00018902,2]
[423519640,1780186241000,-561.02998527,0.000187,2]
[423519648,1780186241000,-40320.24609075,0.00019187,2]
[423519646,1780186241000,-3000.0,0.00019178,2]
[423519642,1780186241000,-1702.29356295,0.000187,2]
[423519650,1780186241000,-246.0,0.00019452,2]
[423519660,1780186241000,-151.0,0.00019549,2]
[423519668,1780186241000,-151.0,0.00019549,2]
[423519662,1780186241000,-221.88543241,0.00019549,2]
[423519658,1780186241000,-151.0,0.00019549,2]
[423519665,1780186241000,-230.09519341,0.00019549,2]
[423519688,1780186241000,-151.0,0.00019549,2]
[423519652,1780186241000,-151.0,0.00019549,2]
[423519673,1780186241000,-151.0,0.00019549,2]
[423519669,1780186241000,-238.60871557,0.00019549,2]
[423519675,1780186241000,-151.0,0.00019549,2]
[423519654,1780186241000,-151.0,0.00019549,2]
[423519664,1780186241000,-151.0,0.00019549,2]
[423519699,1780186241000,-151.0,0.00019549,2]
[423519690,1780186241000,-151.0,0.00019549,2]
[423519677,1780186241000,-2080.17592889,0.00019549,2]
[423519684,1780186241000,-151.0,0.00019549,2]
[423519695,1780186241000,-151.0,0.00019549,2]
[423519686,1780186241000,-151.0,0.00019549,2]
[423519697,1780186241000,-151.0,0.00019549,2]
[423519656,1780186241000,-151.0,0.00019549,2]
[423519752,1780186241000,-514.0,0.00021,2]
[423519779,1780186241000,-329.0,0.00022,2]
[423519764,1780186241000,-357.19249741,0.00021113,2]
[423519813,1780186241000,-170.0,0.00023,2]
[423519810,1780186241000,-329.0,0.00023,2]
[423519811,1780186241000,-158.0,0.00023,2]
[423519815,1780186241000,-514.0,0.00023,2]
[423519817,1780186241000,-247.0,0.00023,2]
[423519818,1780186241000,-210.0,0.00023,2]
[423519822,1780186241000,-187.78006524,0.00023341,2]
[423519819,1780186241000,-316.0,0.00023,2]
[423519821,1780186241000,-153.0,0.00023,2]
[423519838,1780186241000,-1149.57,0.00023388,2]
[423519836,1780186241000,-500.0,0.00023388,2]
[423519845,1780186241000,-156.94942962,0.00023403,2]
[423519812,1780186241000,-451.0,0.00023,2]
[423519830,1780186241000,-874.25908816,0.00023343,2]
[423519834,1780186241000,-2682.57183977,0.00023385,2]
[423519843,1780186241000,-500.0,0.00023388,2]
[423519832,1780186241000,-13878.23372614,0.00023353,2]
[423519847,1780186241000,-517.48961835,0.00023403,2]
[423519829,1780186241000,-1536.04360648,0.00023341,2]
[423519842,1780186241000,-500.0,0.00023388,2]
[423519856,1780186241000,-2356.3270795,0.00023503,2]
[423519851,1780186241000,-500.0,0.00023502,2]
[423519854,1780186241000,-192.07480164,0.00023502,2]
[423519853,1780186241000,-500.0,0.00023502,2]
[423519858,1780186241000,-174283.6222281,0.00023503,2]
[423519849,1780186241000,-151.0,0.000235,7]
[423519839,1780186241000,-500.0,0.00023388,2]
[423519805,1780186241000,-1306.0,0.00022696,5]
[423519761,1780186241000,-7878.76222464,0.00021106,2]
[423519799,1780186241000,-2494.55939288,0.00022289,2]
[423519777,1780186241000,-176.23,0.00021918,2]
[423519759,1780186241000,-153.0,0.00021,2]
[423519773,1780186241000,-151.0,0.00021915,2]
[423519766,1780186241000,-13878.23372614,0.00021128,2]
[423519771,1780186241000,-2405.55389863,0.00021741,2]
[423519769,1780186241000,-40320.24609075,0.00021355,2]
[423519775,1780186241000,-5000.0,0.00021918,2]
[423519807,1780186241000,-1481.2378076,0.00022793,2]
[423519783,1780186241000,-158.0,0.00022,2]
[423519784,1780186241000,-514.0,0.00022,2]
[423519789,1780186241000,-316.0,0.00022,2]
[423519781,1780186241000,-451.0,0.00022,2]
[423519788,1780186241000,-210.0,0.00022,2]
[423519768,1780186241000,-2319.72410669,0.00021193,2]
[423519780,1780186241000,-158.0,0.00022,2]
[423519786,1780186241000,-247.0,0.00022,2]
[423519803,1780186241000,-283.8,0.00022466,2]
[423519809,1780186241000,-2586.85809042,0.00022837,2]
[423519802,1780186241000,-1556.0,0.00022353,2]
[423519806,1780186241000,-181.08010149,0.00022793,2]
[423519800,1780186241000,-150.0,0.000223,14]
[423519794,1780186241000,-174.61919141,0.00022245,2]
[423519792,1780186241000,-1600.0,0.00022035,2]
[423519796,1780186241000,-1428.38747117,0.00022245,2]
[423519798,1780186241000,-578.20924308,0.00022245,2]
[423519795,1780186241000,-204.73485834,0.00022245,2]
[423519791,1780186241000,-153.0,0.00022,2]
[423519926,1780186242000,-1592.87721992,0.00023889,2]
[423519945,1780186242000,-210.0,0.00024,2]
[423519932,1780186242000,-364.0,0.00024,2]
[423519930,1780186242000,-2781.82699784,0.00023933,2]
[423519928,1780186242000,-4100.0,0.000239,8]
[423519923,1780186242000,-194.72792766,0.00023889,2]
[423519936,1780186242000,-166.0,0.00024,2]
[423519943,1780186242000,-247.0,0.00024,2]
[423519938,1780186242000,-451.0,0.00024,2]
[423519922,1780186242000,-940.667,0.00023609,2]
[423519940,1780186242000,-514.0,0.00024,2]
[423519934,1780186242000,-329.0,0.00024,2]
[423519991,1780186242000,-1658.95,0.00024768,2]
[423519949,1780186242000,-153.0,0.00024,2]
[423519961,1780186242000,-1651.81367706,0.00024437,2]
[423519951,1780186242000,-9516.64,0.00024174,2]
[423519971,1780186242000,-199.56,0.00024656,2]
[423519964,1780186242000,-2884.75459676,0.00024481,2]
[423519966,1780186242000,-7878.76222464,0.00024637,2]
[423519968,1780186242000,-200.0,0.00024651,2]
[423519957,1780186242000,-1556.0,0.00024324,2]
[423519953,1780186242000,-1363.72,0.00024174,2]
[423519959,1780186242000,-201.93286098,0.00024437,2]
[423519955,1780186242000,-679.73,0.00024174,2]
[423519973,1780186242000,-660.02,0.00024656,2]
[423519916,1780186242000,-1272.0,0.00023609,2]
[423519947,1780186242000,-316.0,0.00024,2]
[423519917,1780186242000,-525.0,0.00023609,2]
[423519880,1780186242000,-589.338384,0.00023503,2]
[423519919,1780186242000,-3638.0,0.00023609,2]
[423519998,1780186242000,-500.0,0.00024909,2]
[423519864,1780186242000,-378569.749611,0.00023503,2]
[423519866,1780186242000,-3733.095094,0.00023503,2]
[423519862,1780186242000,-6068.3202508,0.00023503,2]
[423519868,1780186242000,-3733.095094,0.00023503,2]
[423519872,1780186242000,-3733.095094,0.00023503,2]
[423519870,1780186242000,-3733.095094,0.00023503,2]
[423519874,1780186242000,-589.338384,0.00023503,2]
[423519884,1780186242000,-763.30317,0.00023503,2]
[423519876,1780186242000,-589.338384,0.00023503,2]
[423519886,1780186242000,-763.30317,0.00023503,2]
[423519878,1780186242000,-589.338384,0.00023503,2]
[423519906,1780186242000,-151.0,0.00023503,2]
[423519888,1780186242000,-763.30317,0.00023503,2]
[423519882,1780186242000,-763.30317,0.00023503,2]
[423519892,1780186242000,-750.633185,0.00023503,2]
[423519894,1780186242000,-750.633185,0.00023503,2]
[423519896,1780186242000,-750.633185,0.00023503,2]
[423519898,1780186242000,-377.783006,0.00023503,2]
[423519900,1780186242000,-377.783006,0.00023503,2]
[423519910,1780186242000,-151.0,0.00023503,2]
[423519904,1780186242000,-377.783006,0.00023503,2]
[423519914,1780186242000,-165.03,0.00023507,2]
[423519908,1780186242000,-151.0,0.00023503,2]
[423519912,1780186242000,-151.0,0.00023503,2]
[423519902,1780186242000,-377.783006,0.00023503,2]
[423519890,1780186242000,-750.633185,0.00023503,2]
[423519860,1780186242000,-3702.6146232,0.00023503,2]
[423519975,1780186242000,-660.02,0.00024656,2]
[423519989,1780186242000,-332.0,0.00024768,2]
[423520055,1780186242000,-1302.17,0.00024999,2]
[423520061,1780186242000,-660.02,0.00024999,2]
[423520049,1780186242000,-1658.95,0.00024999,2]
[423520057,1780186242000,-1302.17,0.00024999,2]
[423520067,1780186242000,-660.02,0.00024999,2]
[423520071,1780186242000,-364.0,0.00025,2]
[423520051,1780186242000,-1658.95,0.00024999,2]
[423520063,1780186242000,-660.02,0.00024999,2]
[423520065,1780186242000,-660.02,0.00024999,2]
[423520069,1780186242000,-660.02,0.00024999,2]
[423520059,1780186242000,-660.02,0.00024999,2]
[423520085,1780186242000,-319.25213369,0.00025,2]
[423520053,1780186242000,-1302.17,0.00024999,2]
[423520093,1780186242000,-4917.05981759,0.00025166,2]
[423520081,1780186242000,-218.07564746,0.00025,2]
[423520087,1780186242000,-161.0,0.00025,2]
[423520083,1780186242000,-1047.61960593,0.00025,2]
[423520077,1780186242000,-524.0,0.00025,2]
[423520089,1780186242000,-2991.49051684,0.00025029,2]
[423520091,1780186242000,-573.0,0.00025082,2]
[423520095,1780186242000,-10258.24742002,0.00025166,2]
[423520075,1780186242000,-461.0,0.00025,2]
[423520102,1780186242000,-500.0,0.00025283,2]
[423520098,1780186242000,-500.0,0.00025283,2]
[423520100,1780186242000,-1149.57,0.00025283,2]
[423519983,1780186242000,-642.95,0.00024658,2]
[423520079,1780186242000,-263.0,0.00025,2]
[423520036,1780186242000,-500.0,0.00024999,2]
[423520073,1780186242000,-329.0,0.00025,2]
[423520026,1780186242000,-9999.99,0.0002498,2]
[423520038,1780186242000,-500.0,0.00024999,2]
[423519994,1780186242000,-1302.17,0.00024768,2]
[423519979,1780186242000,-176.23,0.00024658,6]
[423519981,1780186242000,-1000.0,0.00024658,2]
[423519996,1780186242000,-500.0,0.00024909,2]
[423519987,1780186242000,-1213.75,0.00024768,2]
[423519977,1780186242000,-253.40818272,0.00024657,2]
[423520007,1780186242000,-1213.75,0.00024909,2]
[423520014,1780186242000,-1658.95,0.00024909,2]
[423520003,1780186242000,-1213.75,0.00024909,2]
[423520009,1780186242000,-1658.95,0.00024909,2]
[423520011,1780186242000,-1658.95,0.00024909,2]
[423520005,1780186242000,-1213.75,0.00024909,2]
[423520020,1780186242000,-1302.17,0.00024909,2]
[423519985,1780186242000,-500.0,0.00024768,2]
[423520040,1780186242000,-1213.75,0.00024999,2]
[423520016,1780186242000,-1302.17,0.00024909,2]
[423520047,1780186242000,-1658.95,0.00024999,2]
[423520035,1780186242000,-500.0,0.00024999,2]
[423520033,1780186242000,-1712.93078311,0.00024985,2]
[423520045,1780186242000,-1213.75,0.00024999,2]
[423520031,1780186242000,-209.40437684,0.00024985,2]
[423520042,1780186242000,-1213.75,0.00024999,2]
[423520029,1780186242000,-599.60298507,0.00024984,2]
[423520023,1780186242000,-9999.99,0.0002498,2]
[423520018,1780186242000,-1302.17,0.00024909,2]
[423520000,1780186242000,-500.0,0.00024909,2]